[Event "13th KIIT Festival-A 2022"]
[Site "Bhubaneswar"]
[Date "2022.05.24"]
[Round "4.11"]
[White "Aaryan Varshney"]
[Black "Mayank Chakraborty"]
[Result "1/2-1/2"]
[ECO "D41"]
[WhiteElo "2308"]
[BlackElo "2015"]
[Annotator "TA"]
[PlyCount "83"]
[EventDate "2022.05.15"]
[EventType "swiss"]
[EventCountry "IND"]
[SourceTitle "playchess.com"]
[Source "ChessBase"]
[SourceQuality "1"]
[TimeControl "5400+30"]

{[%evp 26,83,18,14,9,0,38,19,102,103,86,111,145,0,0,-11,-11,-11,-11,-11,-11,-11,-11,-25,17,20,36,0,0,0,0,0,0,0,0,0,0,0,0,0,36,36,36,36,36,36,36,0,0,0,0,0,0,0,0,0,0,0,0,0]} 1. d4 {[%emt 0:00:02]} Nf6 {[%emt 0:00:05]} 2. c4 {[%emt 0:01:18]} e6 {[%emt 0:00:05]} 3. Nf3 {[%emt 0:00:17]} d5 {[%emt 0:00:06]} 4. Nc3 {[%emt 0:00:08]} c5 {[%emt 0:00:06]} 5. cxd5 {[%emt 0:00:19]} Nxd5 {[%emt 0:00:04]} 6. e4 {[%emt 0:00:13]} Nxc3 {[%emt 0:00:05]} 7. bxc3 {[%emt 0:00:01]} cxd4 {[%emt 0:00:02]} 8. cxd4 {[%emt 0:00:03]} Bb4+ {[%emt 0:00:02]} 9. Bd2 {[%emt 0:00:21]} Bxd2+ {[%emt 0:00:09]} 10. Qxd2 {[%emt 0:00:10]} O-O {[%emt 0:00:04]} 11. Bc4 {[%emt 0:00:15]} Nd7 {[%emt 0:00:07]} 12. O-O {[%emt 0:00:06]} b6 {[%emt 0:00:09]} 13. Rfe1 {[%emt 0:00:10]} Bb7 {[%emt 0:00:18]} 14. Rad1 {[%emt 0:00:12]} Rc8 {[%emt 0:00:43] D41: Queen's Gambit Declined: Semi-Tarrasch with 5 cxd5.} 15. Bb3 {[%emt 0:00:13]} Nf6 {[%emt 0:00:37]} 16. Qf4 {[%emt 0:00:08]} Rc3 {[%emt 0:05:06] [#]} (16... Qc7 $11 {keeps the balance.} 17. Qxc7 Rxc7) 17. d5 $1 $16 {[%emt 0:03:22]} exd5 {[%emt 0:00:56] [#]} 18. exd5 $146 {[%emt 0:02:02]} ({Predecessor:} 18. e5 Ne8 19. Rd4 Nc7 20. Nh4 Ne6 21. Qg4 Nxd4 22. Qxd4 Rc6 23. Nf5 Re6 24. Nd6 Qxd6 {0-1 (24) Laborie,J-Lacoste,A France 1979}) 18... Qa8 {[%emt 0:05:32][%cal Rb7d5] [#]} (18... Bxd5 $2 19. Bxd5 Nxd5 20. Qd2 $18) 19. Ne5 {[%emt 0:09:17] White is much more active.} ({Better is} 19. Nh4 $1 $16 {[%cal Rh4f5] And now Nf5 would win.} Bc8 20. d6) 19... Bxd5 $11 {[%emt 0:04:47]} 20. Bxd5 {[%emt 0:01:10]} Nxd5 {[%emt 0:00:01]} 21. Qd4 {[%emt 0:00:47]} Rd8 {[%emt 0:00:02][%cal Bf8d8,Bd8d6,Bd6h6][%mdl 32]} 22. Nc4 $1 {[%emt 0:01:33]} Qc8 {[%emt 0:14:25]} 23. Ne3 {[%emt 0:02:44]} Rc5 {[%emt 0:00:59]} 24. h3 {[%emt 0:10:51]} Kf8 {[%emt 0:05:12]} 25. Qd3 {[%emt 0:03:40]} Rd6 {[%emt 0:13:51]} 26. Qxh7 {[%emt 0:20:30] Intending Nf5 and mate.} (26. Nxd5 {seems wilder.} Rdxd5 27. Qxh7 Rh5 28. Qe4) 26... Rh6 {[%emt 0:00:06]} 27. Qd3 {[%emt 0:00:39]} Nxe3 {[%emt 0:00:24]} 28. Qxe3 {[%emt 0:01:02] Black must now prevent Qe7+.} Re6 {[%emt 0:01:48] Prevents Qe7+.} 29. Qa3 {[%emt 0:02:10]} Rxe1+ {[%emt 0:01:59]} 30. Rxe1 {[%emt 0:00:01][%mdl 4096] Endgame KQR-KQR} Qd7 {[%emt 0:47:40]} 31. Qf3 {[%emt 0:01:04]} Kg8 {[%emt 0:00:00]} 32. Rd1 {[%emt 0:01:18]} Qe6 {[%emt 0:00:00]} 33. Qa8+ {[%emt 0:02:54]} Kh7 {[%emt 0:00:00]} 34. Qxa7 {[%emt 0:00:17]} Ra5 {[%emt 0:00:00]} 35. Qd7 {[%emt 0:01:10]} Qxa2 {[%emt 0:00:00]} 36. Qd8 {[%emt 0:00:55]} Qe2 {[%emt 0:00:00] The position is equal.} 37. Rb1 {[%emt 0:03:49]} Rb5 $1 {[%emt 0:00:00]} 38. Qh4+ {[%emt 0:00:50]} Rh5 {[%emt 0:00:00]} 39. Qf4 {[%emt 0:01:41]} Qe6 {[%emt 0:00:00]} 40. Qd4 {[%emt 0:02:36]} Rxh3 {[%emt 0:00:00]} 41. Qxb6 {[%emt 0:00:18]} Qxb6 {[%emt 0:00:00]} 42. Rxb6 {[%emt 0:00:02] Weighted Error Value: White=0.09 (flawless) /Black=0.13 (very precise)} 1/2-1/2

[Event "13th KIIT Festival-A 2022"]
[Site "Bhubaneswar"]
[Date "2022.05.24"]
[Round "4.12"]
[White "Shiva Pavan Teja Sharma U"]
[Black "Baivab Mishra"]
[Result "1-0"]
[ECO "B51"]
[WhiteElo "2064"]
[BlackElo "2219"]
[Annotator "TA"]
[PlyCount "111"]
[EventDate "2022.05.15"]
[EventType "swiss"]
[EventCountry "IND"]
[SourceTitle "playchess.com"]
[Source "ChessBase"]
[SourceQuality "1"]
[TimeControl "5400+30"]

{[%evp 9,111,14,14,7,37,33,37,37,32,32,26,33,52,52,52,46,53,52,62,37,42,37,38,23,32,24,34,24,39,0,39,15,14,14,38,16,18,21,29,26,32,29,74,0,0,-91,-77,-101,0,-26,0,0,0,-145,-173,-166,-161,-146,-138,-159,0,0,0,-171,0,0,16,27,19,23,268,260,1182,946,1073,1094,554,105,29969,29969,29972,29973,29973,29974,29974,29975,29975,29975,29976,29977,29978,29977,29977,29978,29977,29978,29981,29982,29983,29984,29984,29984,29982,29981]} 1. e4 {[%emt 0:00:10]} c5 {[%emt 0:03:05]} 2. Nf3 {[%emt 0:00:12]} d6 {[%emt 0:00:34]} 3. Bb5+ {[%emt 0:00:22]} Nd7 {[%emt 0:00:34]} 4. a4 {[%emt 0:00:17][%cal Ba2a4,Ba4a5][%mdl 32]} a6 {[%emt 0:00:10]} 5. Be2 {[%emt 0:00:20]} Ngf6 {[%emt 0:00:27]} 6. Nc3 {[%emt 0:00:08] B51: Sicilian: Moscow Variation (3 Bb5+) without 3...Bd7.} g6 {[%emt 0:01:11]} 7. a5 {[%emt 0:02:48]} Bg7 {[%emt 0:00:18]} 8. O-O {[%emt 0:00:16] White is slightly better.} O-O {[%emt 0:00:06]} 9. Re1 {[%emt 0:00:30]} e5 {[%emt 0:08:31]} 10. d3 {[%emt 0:02:31]} h6 {[%emt 0:00:20]} 11. Nd2 {[%emt 0:01:04]} Nb8 {[%emt 0:03:30]} 12. Nc4 {[%emt 0:03:18]} Nc6 {[%emt 0:00:09] [#]} 13. Nd5 $146 {[%emt 0:01:07]} ({Predecessor:} 13. f4 Be6 14. Nb6 Rb8 15. Rf1 Nxa5 16. Nbd5 Nxd5 17. exd5 Bd7 18. fxe5 dxe5 19. Be3 {0-1 (27) Sokolin,L (2482)-Aditya,M (2464) Chess.com INT 2021}) 13... Kh7 {[%emt 0:12:14]} 14. c3 {[%emt 0:10:11] White is more active.} Be6 {[%emt 0:01:33]} 15. Bf3 {[%emt 0:02:25]} Rb8 {[%emt 0:02:13]} 16. Be3 {[%emt 0:04:27]} Bxd5 {[%emt 0:06:02]} 17. exd5 {[%emt 0:00:13]} Ne7 {[%emt 0:00:02]} 18. Nb6 {[%emt 0:00:52]} Nd7 {[%emt 0:00:31]} 19. Nc4 {[%emt 0:11:43]} Qc7 {[%emt 0:02:04]} 20. Qd2 {[%emt 0:03:54]} f5 {[%emt 0:02:19]} 21. Qc2 {[%emt 0:01:31]} Rbe8 {[%emt 0:13:55]} 22. Rab1 {[%emt 0:04:05]} Nf6 {[%emt 0:03:41]} 23. Nb6 {[%emt 0:00:54]} g5 {[%emt 0:02:28]} 24. g3 {[%emt 0:05:21]} Ng6 {[%emt 0:02:14]} 25. Bg2 {[%emt 0:06:28]} g4 {[%emt 0:13:11]} 26. f3 {[%emt 0:04:18]} (26. b4 $16) 26... f4 {[%emt 0:02:18]} 27. gxf4 {[%emt 0:02:48]} (27. Bd2 $11 {remains equal.}) 27... exf4 $17 {[%emt 0:01:04]} 28. Bf2 {[%emt 0:00:08]} Qf7 {[%emt 0:02:10] Against Re6} (28... g3 $1 $17 {[%cal Rg3f2]} 29. hxg3 fxg3 30. Bxg3 Nh5) 29. fxg4 {[%emt 0:02:49] Black must now prevent Bf3.} Nxg4 {[%emt 0:01:07] Hoping for ...f3.} 30. Rxe8 {[%emt 0:03:23]} Rxe8 {[%emt 0:00:27]} 31. Nc4 {[%emt 0:00:26]} (31. Bf3 $1 $11 Qf5 32. Nc4) 31... f3 $1 {[%emt 0:09:43]} 32. Nxd6 {[%emt 0:02:42] [#]} Qf4 {[%emt 0:00:22]} 33. Bg3 {[%emt 0:01:49]} Qe3+ {[%emt 0:02:22]} 34. Bf2 {[%emt 0:01:32] [#]} Qf4 {[%emt 0:03:42]} 35. Bg3 $11 {[%emt 0:00:06] Chess con chili.} Qe3+ {[%emt 0:00:42]} (35... Bd4+ $11 36. cxd4 Qxd4+ 37. Bf2 Qe5) 36. Bf2 $19 {[%emt 0:00:05] [#]} Nxf2 {[%emt 0:01:04]} ({Black should play} 36... Qg5 $1 $19 37. Nxe8 Be5 38. Bxc5 Bxh2+ 39. Kh1 fxg2+ 40. Qxg2 Be5) 37. Qxf2 $11 {[%emt 0:01:10]} fxg2 {[%emt 0:00:40]} 38. Nxe8 {[%emt 0:00:09]} Qxe8 {[%emt 0:00:02]} 39. Re1 $36 {[%emt 0:00:28][%mdl 2048] Inhibits Qe5. White is more active.} Ne5 $2 {[%emt 0:01:32]} (39... Qd7 $1 $11 {and Black is okay.}) 40. Qf5+ $18 {[%emt 0:00:16]} Qg6 $2 {[%emt 0:01:04]} (40... Kh8) 41. Rxe5 {[%emt 0:01:46]} Bxe5 {[%emt 0:00:12]} 42. Qxe5 {[%emt 0:00:05]} Qxd3 {[%emt 0:00:42][%mdl 4096] Endgame KQ-KQ} 43. Qc7+ $2 {[%emt 0:00:33]} (43. Kxg2 $18 {d6 is the strong threat.} Qd2+ 44. Kf3) 43... Kg6 $2 {[%emt 0:00:38][%mdl 8192]} (43... Kh8 $16 44. Qe5+ (44. Kxg2 Qxd5+ 45. Kg3 Qd3+ 46. Kf4 Qd2+ 47. Kf5 Qg5+ 48. Ke6 Qg4+ 49. Ke7 Qg7+ 50. Kd6 Qf6+ 51. Kd7 Qf5+ 52. Ke8 Qg6+ 53. Qf7 Qg2 $16) 44... Kg8 45. Kxg2 Kf7 46. Qe6+ Kf8) 44. Qg3+ $1 {[%emt 0:02:15] White mates.} Qxg3 {[%emt 0:00:02]} 45. hxg3 {[%emt 0:00:09] KP-KP} c4 {[%emt 0:00:00]} 46. Kxg2 {[%emt 0:00:10]} Kf5 {[%emt 0:00:00]} 47. Kh3 {[%emt 0:00:28]} Ke5 {[%emt 0:00:06]} 48. Kg4 {[%emt 0:00:38]} Kxd5 {[%emt 0:00:01] [#]} 49. Kf5 $1 {[%emt 0:04:48]} h5 {[%emt 0:02:25]} 50. Kf4 {[%emt 0:01:43]} Kc5 {[%emt 0:00:45] [#]} 51. Kg5 $1 {[%emt 0:00:06]} Kb5 {[%emt 0:00:40]} 52. Kxh5 {[%emt 0:00:05]} Ka4 {[%emt 0:00:01]} 53. g4 {[%emt 0:00:09][%cal Bg3g4,Bg4g5,Bg5g6,Bg6g7][%mdl 32]} Kb3 {[%emt 0:00:01]} 54. g5 {[%emt 0:00:13]} Kxb2 {[%emt 0:00:01]} 55. g6 {[%emt 0:00:10]} Kxc3 {[%emt 0:00:04]} 56. g7 {[%emt 0:17:56] Never resign too early!  Weighted Error Value: White=0.30/Black=0.29 (precise)} 1-0

[Event "13th KIIT Festival-A 2022"]
[Site "Bhubaneswar"]
[Date "2022.05.24"]
[Round "4.13"]
[White "Chidvilash Sai Surapaneni"]
[Black "Gusain, Himal"]
[Result "1-0"]
[ECO "A36"]
[WhiteElo "1912"]
[BlackElo "2396"]
[Annotator "TA"]
[PlyCount "109"]
[EventDate "2022.05.15"]
[EventType "swiss"]
[EventCountry "IND"]
[SourceTitle "playchess.com"]
[Source "ChessBase"]
[SourceQuality "1"]
[TimeControl "5400+30"]

{[%evp 9,109,0,14,4,30,12,10,9,16,-12,0,0,16,-8,-6,-8,-2,-27,-25,-30,-28,-22,39,33,82,64,96,71,183,106,110,95,143,137,121,129,200,165,146,94,151,137,160,155,160,160,160,123,109,0,150,0,137,0,142,93,87,53,47,0,36,0,0,0,22,0,0,0,0,0,0,0,0,-14,0,-26,0,-102,-94,-91,-92,-145,-160,-139,-133,-116,0,-129,0,-127,33,42,327,303,449,463,1071,988,29986,29987,29989,29990]} 1. c4 {[%emt 0:00:01]} e6 {[%emt 0:06:06]} 2. e4 {[%emt 0:00:17]} c5 {[%emt 0:00:10]} 3. Nc3 {[%emt 0:00:07]} Nc6 {[%emt 0:00:10]} 4. g3 {[%emt 0:00:37]} g6 {[%emt 0:00:23]} 5. Bg2 {[%emt 0:00:07]} Bg7 {[%emt 0:00:05]} 6. Nge2 {[%emt 0:00:10] A36: Symmetrical English vs ...g6: 4 Bg2 Bg7.} h5 {[%emt 0:02:19]} 7. h3 {[%emt 0:00:40]} Nge7 {[%emt 0:02:18]} 8. d3 {[%emt 0:00:12] The position is equal.} a6 {[%emt 0:00:08]} 9. a4 {[%emt 0:00:41] [#]} Nd4 $146 {[%emt 0:00:19]} ({Predecessor:} 9... d6 10. Rb1 Nb4 11. Bg5 Bd7 12. O-O h4 13. d4 hxg3 14. fxg3 Qc7 15. e5 dxe5 {½-½ (57) Weyerstrass,R (2339)-Claridge,J (2352) ICCF email 2017}) 10. O-O {[%emt 0:03:59]} Nec6 {[%emt 0:01:50]} 11. Rb1 {[%emt 0:04:04]} d6 {[%emt 0:00:41]} 12. Nxd4 {[%emt 0:02:53]} cxd4 {[%emt 0:00:35]} 13. Ne2 {[%emt 0:00:19]} a5 {[%emt 0:00:17]} 14. b3 {[%emt 0:03:33]} Bd7 {[%emt 1:22:09]} 15. f4 {[%emt 0:09:41]} f5 {[%emt 0:00:00]} (15... e5 $11) 16. Ba3 $14 {[%emt 0:00:44]} Bf8 {[%emt 0:00:00]} (16... Qc7 $14) 17. h4 {[%emt 0:01:57]} Qb6 {[%emt 0:00:00]} 18. Kh2 {[%emt 0:00:40]} Nb4 {[%emt 0:00:00] [#]} (18... e5 $16 {was called for.}) 19. Bxb4 {[%emt 0:01:39]} (19. Nxd4 $1 $18 {[%cal Oe4f5][%mdl 512] Black must now prevent exf5!} Bg7 20. Nb5) 19... axb4 $16 {[%emt 0:00:00]} 20. Ng1 {[%emt 0:00:08]} e5 {[%emt 0:00:00]} (20... Bg7 $142) 21. Nh3 {[%emt 0:11:32]} Be7 {[%emt 0:00:00]} 22. Qe2 {[%emt 0:05:17] Threatens to win with fxe5.} Qc7 {[%emt 0:00:00]} (22... O-O-O $16 {might work better.}) 23. Rbe1 {[%emt 0:02:37]} O-O-O {[%emt 0:00:00]} 24. Qd2 {[%emt 0:07:27]} (24. a5 $142) 24... Qc5 {[%emt 0:00:00]} ({Black should play} 24... Kb8) 25. Ng5 {[%emt 0:00:21] Nf7 is the strong threat.} Rdf8 {[%emt 0:00:00] Against Nf7} 26. exf5 {[%emt 0:08:08]} gxf5 {[%emt 0:00:00]} 27. Bd5 {[%emt 0:00:09]} Kb8 {[%emt 0:00:00]} 28. Qg2 {[%emt 0:10:20]} Qc7 {[%emt 0:00:00]} 29. Qd2 {[%emt 0:01:08]} (29. Qf2 $16) 29... Qb6 {[%emt 0:00:00]} ({Better is} 29... Qc5 $1 $11) 30. Qg2 {[%emt 0:01:02]} ({White should try} 30. Nf7 $16) 30... Bc8 {[%emt 0:00:00]} (30... Qc7 $1 $11) 31. Qd2 {[%emt 0:02:05]} (31. fxe5 dxe5 32. Rxe5 Qc7 $14) (31. a5 $16 Qc5 32. Qd2 (32. fxe5 dxe5 33. Nf7 Rh7 $14)) 31... Bf6 {[%emt 0:00:00]} (31... Bd7 $1 $11) 32. Re2 {[%emt 0:01:09] White is much more active.} (32. Nf7 $142) 32... Re8 {[%emt 0:00:00]} 33. Rfe1 {[%emt 0:00:22][%cal Oa4a5]} Re7 $1 {[%emt 0:00:00]} 34. Rf1 {[%emt 0:02:43]} (34. fxe5 $14 dxe5 35. Nf7) 34... Bd7 {[%emt 0:00:00]} 35. Rfe1 {[%emt 0:01:30]} Rf8 {[%emt 0:00:00]} 36. Rf1 {[%emt 0:00:57]} Ka7 {[%emt 0:00:00][%cal Bb8a7,Ba7b6,Bb6a6][%mdl 32]} 37. Bg2 {[%emt 0:02:55]} Qc5 {[%emt 0:00:00]} 38. Bd5 {[%emt 0:00:35]} Rfe8 {[%emt 0:00:00] aiming for ...exf4.} 39. Rfe1 {[%emt 0:00:28]} Bc6 {[%emt 0:00:00]} 40. Bxc6 {[%emt 0:00:14]} bxc6 {[%emt 0:00:00]} 41. Qc2 {[%emt 0:02:10]} Kb6 {[%emt 0:00:00]} 42. Nf3 {[%emt 0:10:37]} Ka6 {[%emt 0:00:00]} 43. Nd2 {[%emt 0:01:44]} (43. Kg2 $1 $11) 43... exf4 {[%emt 0:00:00]} (43... Rg7 {feels hotter.} 44. Nf3 Rg4 45. Qd2 Re7) 44. Rxe7 {[%emt 0:00:08]} fxg3+ {[%emt 0:00:00]} 45. Kxg3 {[%emt 0:00:14]} (45. Kh3 $142 Rxe7 46. Rxe7 Bxe7 47. Nf3) 45... Bxe7 $17 {[%emt 0:00:00]} (45... Rxe7 46. Rxe7 Bxe7 47. Nf3 $17) 46. Nf3 {[%emt 0:00:14] [#]} d5 $1 {[%emt 0:00:00]} 47. Kh3 {[%emt 0:00:51]} f4 {[%emt 0:01:21]} (47... Rg8 $17 {And now ...Qd6 would win.} 48. Re6 Kb7) 48. Qg2 {[%emt 0:01:27]} (48. Kh2 $11 {remains equal.}) 48... Qd6 {[%emt 0:02:33]} (48... dxc4 $17 49. dxc4 d3) 49. Nxd4 {[%emt 0:02:38] [#]} (49. cxd5 $1 $11 Qxd5 50. Nxd4 Qd7+ 51. Re6) 49... Qd7+ $2 {[%emt 0:00:39]} (49... Qf6 $1 $17 {[%csl Ge7][%cal Rf6h4]} 50. Nf3 dxc4 51. dxc4 Rd8) 50. Re6 $14 {[%emt 0:01:27]} Bd6 $2 {[%emt 0:04:47][%mdl 8192]} (50... Rd8 $1 $14 51. cxd5 Qxd5 52. Rxc6+ (52. Rxe7 Qxg2+ 53. Kxg2 Rxd4 $11) 52... Kb7) 51. cxd5 $18 {[%emt 0:00:25][%cal Bc4d5,Bd5d6][%mdl 32]} f3 {[%emt 0:08:20]} (51... cxd5 $142 52. Qxd5 Rxe6 53. Qxe6 (53. Nxe6 f3 $16) 53... Qxe6+ 54. Nxe6 f3) 52. Qxf3 {[%emt 0:00:29]} Bc5 {[%emt 0:00:35]} (52... Rf8 $142 53. Nf5 Bc7) 53. Nxc6 {[%emt 0:00:07] White wants to mate with Nb8+.} Kb7 {[%emt 0:00:23] Prevents Nb8.} 54. Ne5 {[%emt 0:00:21]} Qc8 {[%emt 0:00:18]} 55. d6+ {[%emt 0:00:15] Quite a comeback for White.  Weighted Error Value: White=0.32/Black=0.62} 1-0

[Event "13th KIIT Festival-A 2022"]
[Site "Bhubaneswar"]
[Date "2022.05.24"]
[Round "4.14"]
[White "Ayush Jha"]
[Black "Karthikeyan, P.."]
[Result "0-1"]
[ECO "E03"]
[WhiteElo "1900"]
[BlackElo "2361"]
[Annotator "TA"]
[PlyCount "86"]
[EventDate "2022.05.15"]
[EventType "swiss"]
[EventCountry "IND"]
[SourceTitle "playchess.com"]
[Source "ChessBase"]
[SourceQuality "1"]
[TimeControl "5400+30"]

{[%evp 21,86,-54,-50,-38,-49,-86,-78,-110,-93,-91,-79,-81,-85,-120,-103,-112,-70,-85,-70,-181,-178,-272,-268,-289,-286,-279,-287,-288,-284,-263,-256,-245,-201,-288,-283,-282,-284,-256,-248,-499,-291,-399,-370,-747,-697,-864,-856,-849,-825,-962,-858,-957,-948,-878,-657,-1251,-1250,-1297,-1275,-1256,-1221,-1277,-1250,-1036,-999,-904,-841]} 1. d4 {[%emt 0:00:06]} Nf6 {[%emt 0:00:01]} 2. Nf3 {[%emt 0:00:10]} e6 {[%emt 0:00:03]} 3. c4 {[%emt 0:00:09]} d5 {[%emt 0:00:10]} 4. g3 {[%emt 0:00:13]} dxc4 {[%emt 0:00:06]} 5. Qa4+ {[%emt 0:00:09]} Nbd7 {[%emt 0:00:47]} 6. Qxc4 {[%emt 0:00:22]} a6 {[%emt 0:00:08]} 7. Bg2 {[%emt 0:00:28]} b5 {[%emt 0:02:31]} 8. Qc6 {[%emt 0:03:02]} Rb8 {[%emt 0:00:01]} 9. O-O {[%emt 0:01:08]} Bb7 {[%emt 0:00:07]} 10. Qc2 {[%emt 0:00:06]} c5 {[%emt 0:00:34]} 11. dxc5 {[%emt 0:05:11]} Bxc5 {[%emt 0:00:33]} 12. Nc3 {[%emt 0:00:18] E03: Open Catalan: 5 Qa4+ Nbd7 6 Qxc4.} Rc8 {[%emt 0:01:05] [#] ...b4 is the strong threat.} 13. Qb3 {[%emt 0:04:18]} O-O {[%emt 0:01:11]} 14. Bf4 {[%emt 0:02:57] Black is better.} Qb6 {[%emt 0:09:46] [#]} 15. Ne1 $146 {[%emt 0:06:55][%cal Oc3a4]} ({Predecessor:} 15. Ne5 Nxe5 16. Bxb7 Qxb7 17. Bxe5 Ng4 18. Bf4 Bd4 19. h3 Nf6 20. Rac1 h6 21. e3 Bxc3 22. Rxc3 Rxc3 23. Qxc3 {0-1 (30) Lehiste,M (2177)-Ruck,R (2551) Tallinn 2019}) 15... Bd4 {[%emt 0:09:04]} 16. Bxb7 {[%emt 0:07:16]} Qxb7 {[%emt 0:01:25]} 17. Nd1 {[%emt 0:07:00]} Nd5 {[%emt 0:07:51]} 18. Qf3 {[%emt 0:10:37]} Qb6 {[%emt 0:00:49] 0x0.0021b8895157dp-1022s more active pieces.} 19. Nd3 {[%emt 0:01:37]} Nxf4 {[%emt 0:05:28]} 20. Nxf4 {[%emt 0:04:43] [#]} (20. Qxf4 $15 e5 21. Qf5) 20... Ne5 $1 $36 {[%emt 0:00:05][%mdl 2048] Black is on the roll.} 21. Qb3 {[%emt 0:05:07]} (21. Qg2 $142) 21... Nc4 {[%emt 0:00:55]} 22. Qb4 {[%emt 0:02:53]} a5 {[%emt 0:06:29]} 23. Qe1 {[%emt 0:00:07]} Nxb2 {[%emt 0:07:47]} 24. Nxb2 {[%emt 0:00:57]} Bxb2 {[%emt 0:00:07]} 25. Rb1 {[%emt 0:00:09]} Rc2 {[%emt 0:05:33]} 26. Qd1 {[%emt 0:03:32]} Rfc8 {[%emt 0:01:31]} 27. Qd3 {[%emt 0:00:25]} (27. Nd3 $142 Bf6 28. Rc1) 27... b4 {[%emt 0:06:15]} 28. Qb3 {[%emt 0:05:26]} Be5 {[%emt 0:03:40]} 29. Nd3 {[%emt 0:02:06]} Bd4 {[%emt 0:01:22]} 30. Nf4 $2 {[%emt 0:10:00]} (30. e3 {was necessary.} R2c3 31. Rbc1) 30... g6 {[%emt 0:01:16]} (30... g5 $142 31. Nh5 Rxe2) 31. e3 {[%emt 0:00:36]} Be5 {[%emt 0:08:48]} 32. a3 $2 {[%emt 0:03:32]} (32. Rbd1) 32... Bxf4 {[%emt 0:03:03] Black is clearly winning.} 33. gxf4 {[%emt 0:01:27][%cal Ra3b4]} R8c3 {[%emt 0:03:29]} 34. Qa4 {[%emt 0:00:08]} b3 {[%emt 0:00:10] And now ...b2 would win.} 35. Qe8+ {[%emt 0:02:26]} Kg7 {[%emt 0:00:14] Hoping for ...b2.} 36. Rbd1 {[%emt 0:04:49]} Rc8 {[%emt 0:00:53]} 37. Qe7 {[%emt 0:00:47]} R2c7 {[%emt 0:03:40]} 38. Qd6 {[%emt 0:02:00]} Qxd6 {[%emt 0:00:33]} 39. Rxd6 {[%emt 0:00:01]} Rc1 {[%emt 0:01:18]} 40. Rb6 {[%emt 0:00:25]} a4 {[%emt 0:00:24] White must now prevent ...R8c2.} 41. Rb4 {[%emt 0:00:18]} R8c2 {[%emt 0:01:13] Strongly threatening ...b2.} 42. Kg2 {[%emt 0:00:28]} Rxf1 {[%emt 0:00:19]} 43. Kxf1 {[%emt 0:00:01]} Ra2 {[%emt 0:00:01] Weighted Error Value: White=0.64/Black=0.19 (very precise)} 0-1